fUSD/lending_fUSD_20240819
["ID","MTS","AMOUNT","RATE_DAILY","PERIOD"]
[335269055,1724059841874,-500.0,0.0001079,2]
[335269056,1724059841883,-500.0,0.0001079,2]
[335269057,1724059841893,-2795.78,0.0001079,2]
[335269058,1724059841902,-500.0,0.0001079,2]
[335269059,1724059841911,-5423.23,0.0001079,2]
[335269060,1724059841920,-500.0,0.0001079,2]
[335269061,1724059841931,-415.05233771,0.0001079,2]
[335269062,1724059841941,-500.0,0.0001079,2]
[335269063,1724059841951,-500.0,0.0001079,2]
[335269064,1724059841960,-735.06,0.0001079,2]
[335269065,1724059841970,-7185.7,0.0001079,2]
[335269066,1724059841979,-1015.73,0.0001079,2]
[335269067,1724059841989,-1110.92,0.0001079,2]
[335269068,1724059841998,-1110.92,0.0001079,2]
[335269069,1724059842008,-625.71,0.0001079,2]
[335269070,1724059842017,-500.0,0.0001079,2]
[335269071,1724059842027,-4058.87,0.0001079,2]
[335269072,1724059842037,-500.0,0.0001079,2]
[335269073,1724059842048,-7425.88,0.0001079,2]
[335269074,1724059842057,-7300.58,0.0001079,2]
[335269075,1724059842066,-7300.58,0.0001079,2]
[335269076,1724059842076,-500.0,0.0001079,2]
[335269077,1724059842085,-500.0,0.0001079,2]
[335269078,1724059842094,-9662.21,0.0001079,2]
[335269079,1724059842104,-9662.21,0.0001079,2]
[335269080,1724059842113,-500.0,0.0001079,2]
[335269081,1724059842123,-500.0,0.0001079,2]
[335269082,1724059842134,-500.0,0.0001079,2]
[335269083,1724059842149,-500.0,0.0001079,2]
[335269084,1724059842159,-529.94115366,0.0001079,2]
[335269085,1724059842168,-410.04762949,0.0001079,2]
[335269086,1724059842179,-500.0,0.0001079,2]
[335269087,1724059842188,-500.0,0.0001079,2]
[335269088,1724059842198,-532.35442079,0.0001079,2]
[335269089,1724059842207,-548.68914803,0.0001079,2]
[335269090,1724059842217,-2143.52,0.0001079,2]
[335269091,1724059842375,-2143.52,0.0001079,2]
[335269092,1724059842385,-500.0,0.0001079,2]
[335269093,1724059842395,-500.0,0.0001079,2]
[335269094,1724059842404,-3897.87,0.0001079,2]
[335269095,1724059842415,-500.0,0.0001079,2]
[335269096,1724059842424,-500.0,0.0001079,2]
[335269097,1724059842433,-500.0,0.0001079,2]
[335269098,1724059842443,-500.0,0.0001079,2]
[335269099,1724059842452,-500.0,0.0001079,2]
[335269100,1724059842461,-500.0,0.0001079,2]
[335269101,1724059842470,-500.0,0.0001079,2]
[335269102,1724059842481,-500.0,0.0001079,2]
[335269103,1724059842491,-500.0,0.0001079,2]
[335269104,1724059842503,-500.0,0.0001079,2]
[335269105,1724059842513,-543.8904456,0.0001079,2]
[335269106,1724059842525,-500.0,0.0001079,2]
[335269107,1724059842535,-493.93029625,0.0001079,2]
[335269108,1724059842546,-169.25826278,0.0001079,2]
[335269109,1724059842556,-517.85710085,0.0001079,2]
[335269110,1724059842566,-500.0,0.00010791,2]
[335269111,1724059842577,-500.0,0.00010791,2]
[335269113,1724059842586,-500.0,0.00010791,2]
[335269115,1724059842595,-500.0,0.00010791,2]
[335269117,1724059842604,-500.0,0.00010791,2]
[335269119,1724059842613,-500.0,0.00010791,2]
[335269121,1724059842621,-500.0,0.00010791,2]
[335269123,1724059842630,-500.0,0.00010791,2]
[335269124,1724059842639,-1741.52,0.00010791,2]
[335269125,1724059842648,-1645.96,0.00010791,2]
[335269126,1724059842658,-3308.97,0.00010791,2]
[335269128,1724059842667,-3813.52,0.00010791,2]
[335269130,1724059842676,-2700.56,0.00010791,2]
[335269132,1724059842685,-2762.68,0.00010791,2]
[335269133,1724059842695,-1533.55,0.00010791,2]
[335269134,1724059842705,-902.37,0.00010791,2]
[335269135,1724059842716,-1452.95,0.00010791,2]
[335269136,1724059842725,-3438.34,0.00010791,2]
[335269137,1724059842734,-1520.03,0.00010791,2]
[335269138,1724059842743,-789.12,0.00010791,2]
[335269139,1724059842753,-500.0,0.00010791,2]
[335269140,1724059842762,-500.0,0.00010791,2]
[335269141,1724059842771,-500.0,0.00010791,2]
[335269142,1724059842780,-504.49,0.00010791,2]
[335269143,1724059842789,-1518.56,0.00010791,2]
[335269144,1724059842799,-500.0,0.00010791,2]
[335269145,1724059842808,-1054.98,0.00010791,2]
[335269146,1724059842818,-500.0,0.00010791,2]
[335269147,1724059842828,-500.0,0.00010791,2]
[335269148,1724059842837,-500.0,0.00010791,2]
[335269149,1724059842848,-500.0,0.00010791,2]
[335269150,1724059842858,-469.05387916,0.00010791,2]
[335269151,1724059842868,-500.0,0.00010791,2]
[335269152,1724059842878,-500.0,0.00010791,2]
[335269153,1724059842888,-1119.53,0.00010791,2]
[335269154,1724059842897,-4791.52,0.00010791,2]
[335269155,1724059842908,-649.52,0.00010791,2]
[335269156,1724059842918,-1052.34,0.00010791,2]
[335269157,1724059842928,-546.45,0.00010791,2]
[335269158,1724059842939,-500.0,0.00010791,2]
[335269159,1724059842948,-808.82,0.00010791,2]
[335269160,1724059842957,-4175.38,0.00010791,2]
[335269161,1724059842966,-500.0,0.00010791,2]
[335269162,1724059842975,-5592.48,0.00010791,2]
[335269163,1724059842984,-500.0,0.00010791,2]
[335269164,1724059842994,-518.53827424,0.00010791,2]
[335269165,1724059843003,-500.0,0.00010791,2]
[335269166,1724059843012,-500.0,0.00010791,2]
[335269167,1724059843022,-500.0,0.00010791,2]
[335269168,1724059843033,-3992.34,0.00010791,2]
[335269169,1724059843043,-13773.64,0.00010795,2]
[335269170,1724059843052,-10651.95,0.00010795,2]
[335269171,1724059843062,-3896.69,0.00010795,2]
[335269172,1724059843071,-7520.43,0.00010795,2]
[335269173,1724059843081,-23963.81,0.00010795,2]
[335269174,1724059843090,-462.21772196,0.00010795,2]
[335269175,1724059843099,-500.0,0.00010795,2]
[335269176,1724059843109,-5856.35,0.00010795,2]
[335269177,1724059843118,-500.0,0.00010795,2]
[335269178,1724059843127,-938.49,0.00010795,2]
[335269179,1724059843141,-500.0,0.00010796,2]
[335269180,1724059843151,-756.76,0.00010796,2]
[335269181,1724059843160,-500.0,0.00010796,2]
[335269182,1724059843170,-500.0,0.00010796,2]
[335269183,1724059843182,-500.0,0.00010796,2]
[335269184,1724059843193,-500.0,0.00010796,2]
[335269185,1724059843203,-500.0,0.00010796,2]
[335269186,1724059843213,-500.0,0.00010796,2]
[335269187,1724059843223,-500.0,0.00010796,2]
[335269188,1724059843232,-500.0,0.00010796,2]
[335269190,1724059843242,-1076.96,0.00010796,2]
[335269192,1724059843252,-500.0,0.00010796,2]
[335269194,1724059843261,-500.0,0.00010796,2]
[335269196,1724059843271,-500.0,0.00010796,2]
[335269198,1724059843281,-2707.15,0.00010796,2]
[335269199,1724059843291,-500.0,0.00010796,2]
[335269201,1724059843301,-6934.59,0.00010796,2]
[335269203,1724059843310,-722.05,0.00010796,2]
[335269205,1724059843320,-500.0,0.00010796,2]
[335269206,1724059843330,-784.27,0.00010796,2]
[335269207,1724059843339,-2751.51,0.00010796,2]
[335269208,1724059843348,-1424.16,0.00010796,2]
[335269209,1724059843357,-2697.35,0.00010796,2]
[335269210,1724059843366,-4685.46,0.00010796,2]
[335269211,1724059843376,-10813.23,0.00010796,2]
[335269212,1724059843386,-4672.45,0.00010796,2]
[335269213,1724059843395,-3799.3,0.00010796,2]
[335269214,1724059843404,-2863.77,0.00010796,2]
[335269215,1724059843413,-18353.66,0.00010796,2]
[335269216,1724059843423,-8297.93,0.00010796,2]
[335269217,1724059843431,-18290.14,0.00010796,2]
[335269218,1724059843440,-500.0,0.00010796,2]
[335269219,1724059843450,-5757.63,0.00010796,2]
[335269220,1724059843459,-563.14,0.00010796,2]
[335269221,1724059843468,-521.79,0.00010796,2]
[335269222,1724059843477,-1110.92,0.00010796,2]
[335269223,1724059843487,-5664.19,0.00010796,2]
[335269224,1724059843496,-1224.32,0.00010796,2]
[335269225,1724059843505,-500.0,0.00010796,2]
[335269226,1724059843514,-7300.58,0.00010796,2]
[335269227,1724059843524,-9662.21,0.00010796,2]
[335269228,1724059843533,-201.15137705,0.00010796,2]
[335269229,1724059843543,-567.91,0.00010796,2]
[335269230,1724059843552,-2143.52,0.00010796,2]
[335269231,1724059843561,-1601.8,0.00010796,2]
[335269232,1724059843571,-500.0,0.00010796,2]
[335269233,1724059843581,-9033.52,0.00010796,2]
[335269234,1724059843590,-3933.92,0.00010796,2]
[335269235,1724059843599,-500.0,0.00010796,2]
[335269236,1724059843608,-500.0,0.00010797,2]
[335269237,1724059843617,-500.0,0.00010797,2]
[335269238,1724059843626,-500.0,0.00010797,2]
[335269239,1724059843635,-500.0,0.00010797,2]
[335269240,1724059843644,-500.0,0.00010797,2]
[335269241,1724059843654,-500.0,0.00010797,2]
[335269242,1724059843663,-500.0,0.00010797,2]
[335269243,1724059843671,-500.0,0.00010797,2]
[335269244,1724059843681,-500.0,0.00010797,2]
[335269245,1724059843694,-1741.52,0.00010797,2]
[335269246,1724059843703,-500.0,0.00010797,2]
[335269247,1724059843712,-1645.96,0.00010797,2]
[335269248,1724059843721,-3308.97,0.00010797,2]
[335269249,1724059843730,-3813.52,0.00010797,2]
[335269250,1724059843739,-2700.56,0.00010797,2]
[335269251,1724059843748,-500.0,0.00010797,2]
[335269252,1724059843757,-500.0,0.00010797,2]
[335269253,1724059843766,-2762.68,0.00010797,2]
[335269254,1724059843775,-1533.55,0.00010797,2]
[335269255,1724059843784,-902.37,0.00010797,2]
[335269256,1724059843793,-500.0,0.00010797,2]
[335269257,1724059843803,-1452.95,0.00010797,2]
[335269258,1724059843812,-3438.34,0.00010797,2]
[335269259,1724059843825,-1520.03,0.00010797,2]
[335269260,1724059843834,-500.0,0.00010797,2]
[335269261,1724059843843,-789.12,0.00010797,2]
[335269262,1724059843852,-500.0,0.00010797,2]
[335269263,1724059843862,-500.0,0.00010797,2]
[335269264,1724059843872,-500.0,0.00010797,2]
[335269265,1724059843883,-504.49,0.00010797,2]
[335269266,1724059843893,-1518.56,0.00010797,2]
[335269267,1724059843905,-500.0,0.00010797,2]
[335269268,1724059843914,-1054.98,0.00010797,2]
[335269269,1724059843924,-500.0,0.00010797,2]
[335269270,1724059843934,-500.0,0.00010797,2]
[335269271,1724059843943,-500.0,0.00010797,2]
[335269272,1724059843954,-500.0,0.00010797,2]
[335269273,1724059843963,-1243.06,0.00010797,2]
[335269274,1724059843972,-619.94,0.00010797,2]
[335269275,1724059843982,-500.0,0.00010797,2]
[335269276,1724059843991,-1847.13,0.00010797,2]
[335269277,1724059844000,-953.34,0.00010797,2]
[335269278,1724059844009,-500.0,0.00010797,2]
[335269279,1724059844018,-323.72570429,0.00010797,2]
[335269280,1724059844028,-2110.46,0.00010797,2]
[335269281,1724059844038,-1119.53,0.00010797,2]
[335269282,1724059844047,-4570.71,0.00010797,2]
[335269283,1724059844056,-4791.52,0.00010797,2]
[335269284,1724059844066,-649.52,0.00010797,2]
[335269285,1724059844075,-500.0,0.00010797,2]
[335269286,1724059844085,-1052.34,0.00010797,2]
[335269287,1724059844094,-546.45,0.00010797,2]
[335269288,1724059844103,-500.0,0.00010797,2]
[335269289,1724059844113,-500.0,0.00010797,2]
[335269290,1724059844122,-808.82,0.00010797,2]
[335269291,1724059844133,-500.0,0.00010797,2]
[335269292,1724059844144,-500.0,0.00010797,2]
[335269293,1724059844153,-4175.38,0.00010797,2]
[335269294,1724059844163,-500.0,0.00010797,2]
[335269295,1724059844172,-500.0,0.00010797,2]
[335269296,1724059844182,-500.0,0.00010797,2]
[335269297,1724059844191,-5592.48,0.00010797,2]
[335269298,1724059844200,-500.0,0.00010797,2]
[335269299,1724059844211,-500.0,0.00010797,2]
[335269300,1724059844220,-500.0,0.00010797,2]
[335269301,1724059844230,-500.0,0.00010797,2]
[335269302,1724059844239,-500.0,0.00010797,2]
[335269303,1724059844248,-500.0,0.00010797,2]
[335269304,1724059844257,-1015.73,0.00010797,2]
[335269305,1724059844266,-500.0,0.00010797,2]
[335269306,1724059844276,-625.71,0.00010797,2]
[335269307,1724059844285,-500.0,0.00010797,2]
[335269308,1724059844294,-3992.34,0.00010797,2]
[335269309,1724059844304,-3897.87,0.00010797,2]
[335269310,1724059844313,-500.0,0.00010797,2]
[335269311,1724059844322,-500.0,0.00010797,2]
[335269312,1724059844332,-500.0,0.00010797,2]
[335269313,1724059844342,-500.0,0.00010798,2]
[335269314,1724059844351,-487.66147867,0.00010798,2]
[335269315,1724059844359,-619.01721934,0.00010798,2]
[335269316,1724059844368,-500.0,0.00010798,2]
[335269317,1724059844378,-500.0,0.00010798,2]
[335269318,1724059844387,-500.0,0.00010798,2]
[335269319,1724059844396,-500.0,0.00010798,2]
[335269320,1724059844406,-500.0,0.00010798,2]
[335269321,1724059844415,-500.0,0.00010799,2]
[335269322,1724059844424,-500.0,0.00010799,2]
[335269323,1724059844433,-500.0,0.00010799,2]
[335269324,1724059844442,-500.0,0.00010799,2]
[335269325,1724059844451,-500.0,0.00010799,2]
[335269326,1724059844461,-500.0,0.00010799,2]
[335269327,1724059844470,-938.49,0.00010799,2]
[335269328,1724059844479,-938.49,0.00010799,2]
[335269329,1724059844488,-938.49,0.00010799,2]
[335269330,1724059844498,-7557.52031271,0.000108,2]
[335269331,1724059844507,-800.0,0.000108,3]
[335269332,1724059844516,-595037.23028653,0.000108,2]
[335269333,1724059844525,-100000.0,0.00010806,2]
[335269334,1724059844535,-740.26976651,0.00010837,2]
[335269335,1724059844544,-740.26976651,0.00010839,2]
[335269336,1724059844554,-740.26976651,0.00010843,2]
[335269337,1724059844564,-740.26976651,0.00010843,2]
[335269338,1724059844574,-360.10939947,0.00010852,2]
[335269339,1724059844583,-201.0,0.0001086,2]
[335269340,1724059844592,-293.58046742,0.00010861,2]
[335269341,1724059844602,-305.05224028,0.00010862,2]
[335269342,1724059844612,-1323.17583517,0.00010863,2]
[335269343,1724059844623,-740.26976651,0.00010865,2]
[335269344,1724059844633,-740.26976651,0.00010867,2]
[335269345,1724059844643,-740.26976651,0.00010871,2]
[335269346,1724059844653,-740.26976651,0.00010876,2]
[335269347,1724059844664,-4672.45,0.00010885,2]
[335269348,1724059844673,-18353.66,0.00010885,2]
[335269349,1724059844682,-1110.92,0.00010885,2]
[335269350,1724059844691,-500.0,0.00010885,2]
[335269351,1724059844700,-7300.58,0.00010885,2]
[335269352,1724059844709,-9662.21,0.00010885,2]
[335269353,1724059844718,-2143.52,0.00010885,2]
[335269354,1724059844727,-500.0,0.00010885,2]
[335269355,1724059844739,-938.49,0.00010885,2]
[335269356,1724059844749,-174.68941142,0.00010886,2]
[335269357,1724059844759,-500.0,0.00010886,2]
[335269358,1724059844768,-500.0,0.00010886,2]
[335269359,1724059844778,-500.0,0.00010886,2]
[335269360,1724059844787,-500.0,0.00010886,2]
[335269361,1724059844796,-500.0,0.00010886,2]
[335269362,1724059844806,-500.0,0.00010886,2]
[335269363,1724059844816,-500.0,0.00010886,2]
[335269364,1724059844826,-500.0,0.00010886,2]
[335269365,1724059844835,-1741.52,0.00010886,2]
[335269366,1724059844845,-1645.96,0.00010886,2]
[335269367,1724059844855,-3308.97,0.00010886,2]
[335269368,1724059844865,-3813.52,0.00010886,2]
[335269369,1724059844874,-2700.56,0.00010886,2]
[335269370,1724059844883,-2762.68,0.00010886,2]
[335269371,1724059844892,-1533.55,0.00010886,2]
[335269372,1724059844901,-902.37,0.00010886,2]
[335269373,1724059844912,-1452.95,0.00010886,2]
[335269374,1724059844922,-3438.34,0.00010886,2]
[335269375,1724059844933,-1520.03,0.00010886,2]
[335269376,1724059844943,-789.12,0.00010886,2]
[335269377,1724059844954,-500.0,0.00010886,2]
[335269378,1724059844965,-500.0,0.00010886,2]
[335269379,1724059844975,-500.0,0.00010886,2]
[335269380,1724059844985,-504.49,0.00010886,2]
[335269381,1724059844994,-1518.56,0.00010886,2]
[335269382,1724059845003,-500.0,0.00010886,2]
[335269383,1724059845012,-1054.98,0.00010886,2]
[335269384,1724059845022,-500.0,0.00010886,2]
[335269385,1724059845032,-500.0,0.00010886,2]
[335269386,1724059845041,-500.0,0.00010886,2]
[335269387,1724059845050,-500.0,0.00010886,2]
[335269388,1724059845059,-385.8342939,0.00010886,2]
[335269389,1724059845069,-1119.53,0.00010886,2]
[335269390,1724059845080,-4791.52,0.00010886,2]
[335269391,1724059845090,-649.52,0.00010886,2]
[335269392,1724059845099,-1052.34,0.00010886,2]
[335269393,1724059845108,-546.45,0.00010886,2]
[335269394,1724059845117,-500.0,0.00010886,2]
[335269395,1724059845126,-808.82,0.00010886,2]
[335269396,1724059845139,-4175.38,0.00010886,2]
[335269397,1724059845147,-5592.48,0.00010886,2]
[335269398,1724059845157,-500.0,0.00010886,2]
[335269399,1724059845165,-500.0,0.00010886,2]
[335269400,1724059845175,-500.0,0.00010886,2]
[335269401,1724059845184,-500.0,0.00010886,2]
[335269402,1724059845193,-3992.34,0.00010886,2]
[335269403,1724059845203,-380.35876131,0.00010888,2]
[335269404,1724059845214,-357.68666439,0.00010888,2]
[335269405,1724059845225,-682.51986,0.0001089,2]
[335269406,1724059845234,-13773.64,0.00010895,2]
[335269407,1724059845244,-10651.95,0.00010895,2]
[335269408,1724059845253,-3896.69,0.00010895,2]
[335269409,1724059845262,-7520.43,0.00010895,2]
[335269410,1724059845271,-23963.81,0.00010895,2]
[335269411,1724059845280,-5856.35,0.00010895,2]
[335269412,1724059845289,-500.0,0.00010896,2]
[335269413,1724059845298,-756.76,0.00010896,2]
[335269414,1724059845307,-517.20668083,0.00010896,2]
[335269415,1724059845317,-500.0,0.00010896,2]
[335269416,1724059845328,-500.0,0.00010896,2]
[335269417,1724059845339,-500.0,0.00010896,2]
[335269418,1724059845348,-500.0,0.00010896,2]
[335269419,1724059845357,-500.0,0.00010896,2]
[335269420,1724059845367,-500.0,0.00010896,2]
[335269421,1724059845376,-500.0,0.00010896,2]
[335269422,1724059845385,-1076.96,0.00010896,2]
[335269423,1724059845394,-500.0,0.00010896,2]
[335269424,1724059845531,-500.0,0.00010896,2]
[335269425,1724059845541,-500.0,0.00010896,2]
[335269426,1724059845550,-2707.15,0.00010896,2]
[335269427,1724059845559,-500.0,0.00010896,2]
[335269428,1724059845568,-6934.59,0.00010896,2]
[335269429,1724059845579,-722.05,0.00010896,2]
[335269430,1724059845589,-500.0,0.00010896,2]
[335269431,1724059845598,-784.27,0.00010896,2]
[335269432,1724059845607,-2751.51,0.00010896,2]
[335269433,1724059845616,-1424.16,0.00010896,2]
[335269434,1724059845625,-2697.35,0.00010896,2]
[335269435,1724059845634,-4685.46,0.00010896,2]
[335269436,1724059845644,-10813.23,0.00010896,2]
[335269438,1724059845653,-3799.3,0.00010896,2]
[335269439,1724059845662,-2863.77,0.00010896,2]
[335269440,1724059845671,-8297.93,0.00010896,2]
[335269441,1724059845680,-18290.14,0.00010896,2]
[335269442,1724059845689,-500.0,0.00010896,2]
[335269443,1724059845698,-5757.63,0.00010896,2]
[335269444,1724059845708,-563.14,0.00010896,2]
[335269445,1724059845717,-521.79,0.00010896,2]
[335269446,1724059845725,-5664.19,0.00010896,2]
[335269447,1724059845735,-1224.32,0.00010896,2]
[335269448,1724059845744,-500.0,0.00010896,2]
[335269449,1724059845753,-567.91,0.00010896,2]
[335269450,1724059845762,-1601.8,0.00010896,2]
[335269451,1724059845772,-500.0,0.00010896,2]
[335269452,1724059845781,-9033.52,0.00010896,2]
[335269453,1724059845791,-3933.92,0.00010896,2]
[335269454,1724059845800,-500.0,0.00010896,2]
[335269455,1724059845809,-152.67384192,0.00010898,2]
[335269456,1724059845822,-236.36319912,0.00010899,2]
[335269457,1724059845832,-155.0,0.00010899,2]
[335269458,1724059845842,-1000.0,0.000109,2]
[335269459,1724059845852,-1000.0,0.000109,2]
[335269460,1724059845861,-501.13,0.00010922,2]
[335269461,1724059845871,-201.0,0.0001093,2]
[335269462,1724059845881,-155.0,0.00010949,2]
[335269463,1724059845890,-743.42,0.00010959,2]
[335269464,1724059845900,-200.7553641,0.00010973,2]
[335269465,1724059845909,-200.0,0.00010973,2]
[335269466,1724059845919,-200.0,0.00010973,2]
[335269467,1724059845929,-439.27640021,0.00010979,2]
[335269468,1724059845938,-589.80158569,0.00010979,2]
[335269469,1724059845948,-1896.0,0.00010979,2]
[335269470,1724059845957,-551.0,0.00010979,2]
[335269471,1724059845967,-1171.0,0.00010979,2]
[335269472,1724059845976,-247.0,0.00010979,2]
[335269473,1724059845986,-3318.0,0.00010979,2]
[335269474,1724059845995,-764.0,0.00010979,2]
[335269475,1724059846004,-622.0,0.00010979,2]
[335269476,1724059846014,-21769.0,0.00010979,2]
[335269477,1724059846024,-2355.317,0.00010979,2]
[335269478,1724059846034,-1923.0,0.00010979,2]
[335269479,1724059846044,-500.0,0.00010984,2]
[335269480,1724059846053,-500.0,0.00010984,2]
[335269481,1724059846063,-938.49,0.00010984,2]
[335269482,1724059846072,-378.3,0.00010985,2]
[335269483,1724059846087,-284.68190157,0.00010985,2]
[335269484,1724059846096,-500.0,0.00010985,2]
[335269485,1724059846106,-500.0,0.00010985,2]
[335269486,1724059846116,-500.0,0.00010985,2]
[335269487,1724059846125,-500.0,0.00010985,2]
[335269488,1724059846138,-500.0,0.00010985,2]
[335269489,1724059846148,-1243.06,0.00010985,2]
[335269490,1724059846158,-619.94,0.00010985,2]
[335269491,1724059846167,-1847.13,0.00010985,2]
[335269492,1724059846178,-953.34,0.00010985,2]
[335269493,1724059846188,-2110.46,0.00010985,2]
[335269494,1724059846197,-4570.71,0.00010985,2]
[335269495,1724059846206,-500.0,0.00010985,2]
[335269496,1724059846216,-500.0,0.00010985,2]
[335269497,1724059846226,-391.68189085,0.00010985,2]
[335269498,1724059846236,-500.0,0.00010985,2]
[335269499,1724059846246,-500.0,0.00010985,2]
[335269500,1724059846256,-352.19995533,0.00010985,2]
[335269501,1724059846266,-4672.45,0.00010985,2]
[335269502,1724059846276,-18353.66,0.00010985,2]
[335269503,1724059846286,-500.0,0.00010985,2]
[335269504,1724059846296,-500.0,0.00010985,2]
[335269505,1724059846306,-500.0,0.00010985,2]
[335269506,1724059846316,-1015.73,0.00010985,2]
[335269507,1724059846327,-1110.92,0.00010985,2]
[335269508,1724059846337,-625.71,0.00010985,2]
[335269509,1724059846347,-500.0,0.00010985,2]
[335269510,1724059846357,-7300.58,0.00010985,2]
[335269511,1724059846367,-9662.21,0.00010985,2]
[335269512,1724059846377,-2143.52,0.00010985,2]
[335269513,1724059846386,-3897.87,0.00010985,2]
[335269514,1724059846396,-604.81200696,0.00010985,2]
[335269515,1724059846405,-500.0,0.00010985,2]
[335269517,1724059846415,-500.0,0.00010985,2]
[335269518,1724059846426,-500.0,0.00010986,2]
[335269519,1724059846435,-500.0,0.00010986,2]
[335269520,1724059846445,-500.0,0.00010986,2]
[335269521,1724059846455,-500.0,0.00010986,2]
[335269522,1724059846465,-513.02443342,0.00010986,2]
[335269523,1724059846474,-361.47191852,0.00010986,2]
[335269524,1724059846484,-500.0,0.00010988,2]
[335269525,1724059846493,-500.0,0.00010988,2]
[335269526,1724059846502,-500.0,0.00010988,2]
[335269527,1724059846512,-500.0,0.00010988,2]
[335269528,1724059846521,-500.0,0.00010988,2]
[335269529,1724059846531,-500.0,0.00010988,2]
[335269530,1724059846540,-500.0,0.00010988,2]
[335269531,1724059846549,-500.0,0.00010988,2]
[335269532,1724059846559,-1741.52,0.00010988,2]
[335269533,1724059846570,-1645.96,0.00010988,2]
[335269534,1724059846580,-3308.97,0.00010988,2]
[335269535,1724059846590,-3813.52,0.00010988,2]
[335269536,1724059846599,-2700.56,0.00010988,2]
[335269537,1724059846609,-2762.68,0.00010988,2]
[335269538,1724059846619,-1533.55,0.00010988,2]
[335269539,1724059846628,-902.37,0.00010988,2]
[335269540,1724059846638,-1452.95,0.00010988,2]
[335269541,1724059846647,-3438.34,0.00010988,2]
[335269542,1724059846657,-1520.03,0.00010988,2]
[335269543,1724059846666,-789.12,0.00010988,2]
[335269544,1724059846676,-500.0,0.00010988,2]
[335269545,1724059846685,-500.0,0.00010988,2]
[335269546,1724059846695,-500.0,0.00010988,2]
[335269547,1724059846705,-504.49,0.00010988,2]
[335269548,1724059846715,-1518.56,0.00010988,2]
[335269549,1724059846725,-500.0,0.00010988,2]
[335269550,1724059846734,-1054.98,0.00010988,2]
[335269551,1724059846743,-500.0,0.00010988,2]
[335269552,1724059846752,-500.0,0.00010988,2]
[335269553,1724059846762,-500.0,0.00010988,2]
[335269554,1724059846771,-500.0,0.00010988,2]
[335269555,1724059846781,-1119.53,0.00010988,2]
[335269556,1724059846790,-4791.52,0.00010988,2]
[335269557,1724059846800,-649.52,0.00010988,2]
[335269558,1724059846810,-1052.34,0.00010988,2]
[335269559,1724059846819,-546.45,0.00010988,2]
[335269560,1724059846829,-500.0,0.00010988,2]
[335269561,1724059846838,-808.82,0.00010988,2]
[335269562,1724059846848,-4175.38,0.00010988,2]
[335269563,1724059846857,-5592.48,0.00010988,2]
[335269564,1724059846867,-500.0,0.00010988,2]
[335269565,1724059846876,-500.0,0.00010988,2]
[335269566,1724059846885,-500.0,0.00010988,2]
[335269567,1724059846895,-500.0,0.00010988,2]
[335269568,1724059846905,-151.0,0.00010988,2]
[335269569,1724059846915,-3992.34,0.00010988,2]
[335269570,1724059846925,-151.0,0.00010988,2]
[335269571,1724059846934,-151.0,0.00010988,2]
[335269572,1724059846943,-13773.64,0.00010989,2]
[335269573,1724059846953,-10651.95,0.00010989,2]